bitfinex-derivatives/quotes_BTCF0:USTF0_20241203
["timestamp","ask_amount","ask_price","bid_price","bid_amount"]
[1733208322903,0.3628,96230.0,96228.0,0.08606365]
[1733208323319,0.002,96230.0,96228.0,0.08606365]
[1733208324411,0.0104,96233.0,96232.0,0.051947]
[1733208325612,0.0114,96233.0,96232.0,0.052947]
[1733208326319,0.0114,96233.0,96232.0,0.001]
[1733208326711,0.0124,96233.0,96232.0,0.006]
[1733208327413,0.4024,96233.0,96232.0,0.006]
[1733208331122,0.7632,96233.0,96232.0,0.006]
[1733208333515,0.795,96233.0,96232.0,0.006]
[1733208336822,0.7632,96233.0,96232.0,0.006]
[1733208337030,0.3732,96233.0,96232.0,0.057947]
[1733208337920,0.0124,96233.0,96232.0,0.057947]
[1733208346029,0.4024,96233.0,96232.0,0.057947]
[1733208346528,0.4024,96233.0,96232.0,0.006]
[1733208346725,0.7632,96233.0,96232.0,0.1388]
[1733208347735,0.4024,96233.0,96232.0,0.1388]
[1733208361134,0.7632,96233.0,96232.0,0.1388]
[1733208361435,0.4024,96233.0,96232.0,0.1388]
[1733208361635,0.7632,96233.0,96232.0,0.1388]
[1733208362431,0.4024,96233.0,96232.0,0.1388]
[1733208363039,0.4024,96233.0,96232.0,0.4996]
[1733208363336,0.4024,96233.0,96232.0,0.1388]
[1733208365147,0.4327,96233.0,96232.0,0.1388]
[1733208375450,0.4327,96233.0,96232.0,0.006]
[1733208377944,0.484647,96233.0,96232.0,0.006]
[1733208380151,0.50355596,96233.0,96232.0,0.006]
[1733208380553,0.50355596,96233.0,96232.0,0.007]
[1733208380848,0.50355596,96233.0,96232.0,0.002]
[1733208380849,0.50255596,96233.0,96232.0,0.002]
[1733208381049,0.50355596,96233.0,96232.0,0.006]
[1733208382246,0.50355596,96233.0,96228.0,0.00010986]
[1733208382446,0.412749,96229.0,96228.0,0.00010986]
[1733208383250,0.051952,96224.0,96223.0,1e-08]
[1733208383455,0.412752,96224.0,96223.0,1e-08]
[1733208383847,0.802752,96224.0,96223.0,1e-08]
[1733208384040,0.80287851,96224.0,96223.0,1e-08]
[1733208384244,1.10287851,96224.0,96223.0,1e-08]
[1733208386752,0.80287851,96224.0,96223.0,1e-08]
[1733208387145,1.20680322,96224.0,96223.0,1e-08]
[1733208389165,1.20780322,96224.0,96223.0,1e-08]
[1733208389452,1.20780322,96224.0,96209.0,0.0104]
[1733208389644,1.20780322,96224.0,96200.0,0.1]
[1733208389645,0.051964,96201.0,96200.0,0.1]
[1733208389850,0.412764,96201.0,96200.0,0.1]
[1733208390049,0.802764,96201.0,96200.0,0.1]
[1733208390855,0.803764,96201.0,96200.0,0.101]
[1733208391854,0.804764,96201.0,96200.0,0.101]
[1733208392260,0.804764,96201.0,96200.0,0.1]
[1733208392757,0.05197,96190.0,96180.0,8.047e-05]
[1733208392948,0.05197,96190.0,96183.0,0.0311]
[1733208392949,0.412773,96184.0,96183.0,0.0311]
[1733208393349,0.412773,96184.0,96183.0,0.05018989]
[1733208393960,0.412773,96184.0,96183.0,0.18234989]
[1733208394453,0.3618,96184.0,96183.0,0.18234989]
[1733208395457,0.3628,96184.0,96183.0,0.18234989]
[1733208399563,0.414773,96184.0,96183.0,0.18234989]
[1733208401155,0.414773,96184.0,96183.0,0.0311]
[1733208401353,0.414773,96184.0,96183.0,0.1633]
[1733208402460,0.414773,96184.0,96183.0,0.0311]
[1733208402650,0.414773,96184.0,96183.0,0.1633]
[1733208403165,0.414773,96184.0,96183.0,0.1322]
[1733208403851,0.804773,96184.0,96183.0,0.1322]
[1733208404455,0.414773,96184.0,96183.0,0.1322]
[1733208405651,0.414773,96184.0,96182.0,0.13288]
[1733208407759,0.413773,96184.0,96182.0,0.13288]
[1733208407955,0.414773,96184.0,96182.0,0.13288]
[1733208408959,0.414773,96184.0,96180.0,0.13296047]
[1733208408960,0.051974,96182.0,96180.0,0.13296047]
[1733208409156,0.051974,96182.0,96180.0,8.047e-05]
[1733208410763,0.052974,96182.0,96180.0,8.047e-05]
[1733208411565,0.053974,96182.0,96180.0,8.047e-05]
[1733208415563,0.051974,96182.0,96180.0,8.047e-05]
[1733208415769,0.053974,96182.0,96180.0,8.047e-05]
[1733208415964,0.053974,96182.0,96164.0,0.14328]
[1733208415965,0.051979,96173.0,96164.0,0.14328]
[1733208416160,0.412779,96173.0,96166.0,0.0026]
[1733208416360,0.0104,96168.0,96159.0,0.13288]
[1733208416561,0.412786,96160.0,96159.0,0.13288]
[1733208416868,0.412786,96160.0,96157.0,0.0305]
[1733208416869,0.3608,96160.0,96157.0,0.0305]
[1733208417158,0.051987,96159.0,96158.0,0.13288]
[1733208418356,0.052987,96159.0,96158.0,0.13288]
[1733208419060,0.001,96159.0,96158.0,0.13288]
[1733208420061,0.002,96159.0,96158.0,0.13288]
[1733208422954,0.053987,96159.0,96158.0,0.13288]
[1733208423755,0.002,96159.0,96158.0,0.13288]
[1733208425756,0.001,96159.0,96158.0,0.13288]
[1733208425961,0.002,96159.0,96158.0,0.13288]
[1733208426365,0.001,96159.0,96158.0,0.13288]
[1733208426560,0.002,96159.0,96158.0,0.13288]
[1733208435190,0.002,96159.0,96158.0,0.13148]
[1733208440784,0.392,96159.0,96158.0,0.13148]
[1733208441485,0.002,96159.0,96157.0,0.0716439]
[1733208441692,0.002,96159.0,96158.0,0.13148]
[1733208442481,0.053987,96159.0,96158.0,0.13148]
[1733208446394,0.002,96159.0,96150.0,0.45682143]
[1733208446688,0.002,96159.0,96151.0,0.13148]
[1733208446689,0.05199,96154.0,96151.0,0.13148]
[1733208446889,0.05199,96154.0,96150.0,0.45606143]
[1733208446890,0.05199,96154.0,96150.0,0.45678143]
[1733208447093,0.051991,96152.0,96151.0,0.13148]
[1733208447982,0.051991,96152.0,96150.0,0.45682143]
[1733208447983,0.412791,96152.0,96150.0,0.45682143]
[1733208448185,0.412791,96152.0,96150.0,0.45606143]
[1733208448186,0.0331,96151.0,96150.0,0.45606143]
[1733208448493,0.0331,96151.0,96150.0,0.58754143]
[1733208448984,0.0986,96151.0,96150.0,0.56852]
[1733208449380,0.051992,96150.0,96149.0,0.13148]
[1733208449591,0.064992,96150.0,96149.0,0.13148]
[1733208451089,0.065992,96150.0,96149.0,0.13148]
[1733208451278,0.014,96150.0,96149.0,0.13148]
[1733208451490,0.014,96150.0,96143.0,0.38019829]
[1733208451693,0.051992,96149.0,96147.0,0.13148]
[1733208452082,0.051992,96149.0,96143.0,0.38019829]
[1733208452283,0.015,96150.0,96144.0,0.13148]
[1733208452791,0.051994,96147.0,96144.0,0.13148]
[1733208453402,0.051994,96147.0,96143.0,0.07139329]
[1733208453697,0.051994,96147.0,96144.0,0.13148]
[1733208454090,0.051994,96146.0,96144.0,0.13148]
[1733208455592,0.001,96146.0,96145.0,0.051994]
[1733208455909,0.002,96146.0,96145.0,0.051994]
[1733208456195,0.002,96146.0,96145.0,0.183474]
[1733208456892,0.001,96146.0,96145.0,0.183474]
[1733208457195,0.001,96146.0,96145.0,0.051994]
[1733208457196,0.002,96146.0,96145.0,0.051994]
[1733208457383,0.002,96146.0,96145.0,0.183474]
[1733208459691,0.002,96146.0,96145.0,0.13148]
[1733208460081,0.053994,96146.0,96145.0,0.13148]
[1733208462403,0.002,96146.0,96142.0,0.01895588]
[1733208462586,0.051995,96145.0,96143.0,0.13152]
[1733208463696,0.052995,96145.0,96143.0,0.13152]
[1733208464894,0.053995,96145.0,96143.0,0.13152]
[1733208465397,0.053995,96145.0,96144.0,0.12952]
[1733208466389,0.052995,96145.0,96144.0,0.12952]
[1733208466589,0.053995,96145.0,96144.0,0.12952]
[1733208466803,0.002,96145.0,96144.0,0.12952]
[1733208474301,0.002,96145.0,96144.0,0.16182]
[1733208474505,0.002,96145.0,96144.0,0.19302]
[1733208478109,0.002,96145.0,96144.0,0.0635]
[1733208478313,0.002,96145.0,96144.0,0.19302]
[1733208487615,0.002,96145.0,96144.0,0.16182]
[1733208488309,0.002,96145.0,96144.0,0.12952]
[1733208489812,0.051997,96140.0,96139.0,0.051997]
[1733208490217,0.051997,96140.0,96139.0,0.12952]
[1733208491218,0.052997,96140.0,96138.0,0.00011919]
[1733208491408,0.053997,96140.0,96138.0,0.00011919]
[1733208492412,0.052997,96140.0,96138.0,0.00011919]
[1733208492612,0.053997,96140.0,96138.0,0.00011919]
[1733208496927,0.39,96139.0,96138.0,0.00011919]
[1733208497915,0.7508,96139.0,96138.0,0.00011919]
[1733208498119,0.7528,96139.0,96138.0,0.00011919]
[1733208498316,0.77251467,96139.0,96138.0,0.00011919]
[1733208498521,0.052004,96128.0,96127.0,0.0026]
[1733208498715,0.052005,96126.0,96125.0,0.00156034]
[1733208499723,0.052007,96121.0,96115.0,0.14899007]
[1733208499929,0.3608,96116.0,96115.0,0.14899007]
[1733208501016,0.013,96119.0,96118.0,0.052009]
[1733208502630,0.014,96119.0,96118.0,0.052009]
[1733208503132,0.014,96119.0,96115.0,0.14899007]
[1733208503133,0.052009,96118.0,96115.0,0.01891007]
[1733208503333,0.052009,96118.0,96115.0,0.13008]
[1733208504535,0.053009,96118.0,96115.0,0.13008]
[1733208504737,0.054009,96118.0,96115.0,0.13008]
[1733208505031,0.05201,96116.0,96115.0,0.13008]
[1733208505626,0.05201,96116.0,96110.0,0.11970199]
[1733208505627,0.05201,96116.0,96113.0,0.13008]
[1733208506933,0.05301,96116.0,96114.0,0.13008]
[1733208507127,0.05401,96116.0,96114.0,0.13008]
[1733208508130,0.05301,96116.0,96114.0,0.13008]
[1733208508325,0.05401,96116.0,96114.0,0.13008]
[1733208509537,0.002,96116.0,96115.0,0.052011]
[1733208510732,0.05201,96117.0,96115.0,0.052011]
[1733208511035,0.002,96116.0,96115.0,0.052011]
[1733208512035,0.05301,96116.0,96114.0,0.13008]
[1733208512828,0.39,96115.0,96110.0,0.11970199]
[1733208513141,0.052012,96113.0,96111.0,0.13012]
[1733208514632,0.054012,96113.0,96111.0,0.13012]
[1733208515434,0.002,96113.0,96111.0,0.182133]
[1733208517141,0.052012,96112.0,96111.0,0.13012]
[1733208518331,0.052012,96112.0,96110.0,0.11970199]
[1733208518532,0.052012,96112.0,96111.0,0.13012]
[1733208518936,0.052012,96112.0,96110.0,0.1]
[1733208519139,0.053012,96112.0,96110.0,0.1]
[1733208520139,0.054012,96112.0,96110.0,0.1]
[1733208520530,0.053012,96112.0,96110.0,0.1]
[1733208520840,0.054012,96112.0,96110.0,0.1]
[1733208532052,0.36091676,96145.0,96110.0,0.31032133]
[1733208532247,0.0104,96140.0,96136.0,0.051999]
[1733208532439,0.051995,96144.0,96141.0,0.051996]
[1733208532645,0.051996,96142.0,96141.0,0.12976]
[1733208533239,0.36091676,96145.0,96127.0,0.3608]
[1733208533543,0.36091676,96145.0,96121.0,0.0104]
[1733208533544,0.052006,96123.0,96121.0,0.0104]
[1733208533746,0.3608,96122.0,96119.0,0.052008]
[1733208534150,0.3608,96122.0,96119.0,0.181768]
[1733208535346,0.3608,96122.0,96120.0,0.052008]
[1733208536150,0.3618,96122.0,96120.0,0.052008]
[1733208537046,0.3618,96122.0,96120.0,0.054008]
[1733208537047,0.3628,96122.0,96120.0,0.054008]
[1733208537246,0.002,96122.0,96120.0,0.056008]
[1733208537453,0.3628,96122.0,96120.0,0.056008]
[1733208538157,0.39,96121.0,96120.0,0.056008]
[1733208539263,0.391,96121.0,96120.0,0.055008]
[1733208539659,0.392,96121.0,96120.0,0.054008]
[1733208542058,0.392,96121.0,96120.0,0.002]
[1733208544157,0.4231,96121.0,96120.0,0.002]
[1733208548661,0.392,96121.0,96120.0,0.002]
[1733208549656,0.002,96121.0,96120.0,0.002]
[1733208549861,0.002,96121.0,96120.0,0.13176]
[1733208554463,0.392,96121.0,96120.0,0.13176]
[1733208560274,0.392,96121.0,96120.0,0.13312]
[1733208561059,0.392,96121.0,96120.0,0.002]
[1733208562360,0.41080943,96121.0,96120.0,0.002]
[1733208565962,0.41080943,96121.0,96116.0,0.0104]
[1733208566167,0.77160943,96121.0,96116.0,0.0104]
[1733208566666,0.05201,96117.0,96116.0,0.0104]
[1733208567067,0.05201,96117.0,96116.0,0.0114]
[1733208567267,0.05211506,96117.0,96116.0,0.0124]
[1733208567765,0.05311506,96117.0,96116.0,0.0124]
[1733208567967,0.05411506,96117.0,96116.0,0.0124]
[1733208572677,0.05411506,96117.0,96105.0,0.0156]
[1733208572678,0.052016,96106.0,96105.0,0.0156]
[1733208572979,0.052016,96106.0,96100.0,0.2]
[1733208572980,0.052018,96101.0,96100.0,0.2]
[1733208573173,0.412818,96101.0,96100.0,0.2]
[1733208573674,0.802818,96101.0,96100.0,0.2]
[1733208574474,0.802818,96101.0,96085.0,0.0156]
[1733208574475,0.052023,96093.0,96085.0,0.0156]
[1733208574681,0.052023,96093.0,96081.0,0.13112]
[1733208574682,0.412823,96093.0,96081.0,0.13112]
[1733208576076,0.413823,96093.0,96081.0,0.13112]
[1733208576572,0.414823,96093.0,96081.0,0.13112]
[1733208579078,0.420823,96093.0,96081.0,0.13112]
[1733208579271,0.421823,96093.0,96081.0,0.13112]
[1733208579772,0.422823,96093.0,96081.0,0.13112]
[1733208580071,0.424823,96093.0,96081.0,0.13112]
[1733208580281,0.422823,96093.0,96081.0,0.13112]
[1733208582879,0.422823,96093.0,96086.0,0.052026]
[1733208583381,0.3708,96093.0,96088.0,0.052025]
[1733208584286,0.3708,96093.0,96083.0,0.052028]
[1733208584989,0.3708,96093.0,96084.0,0.052027]
[1733208587178,0.3708,96093.0,96085.0,0.131]
[1733208589483,0.3708,96093.0,96085.0,0.183027]
[1733208589784,0.3708,96093.0,96087.0,0.052026]
[1733208590091,0.3708,96093.0,96088.0,0.052025]
[1733208591681,0.3708,96093.0,96091.0,0.052023]
[1733208591894,0.3708,96093.0,96092.0,0.06349648]
[1733208592076,0.01,96093.0,96092.0,0.06349648]
[1733208593879,0.01,96093.0,96092.0,0.08240709]
[1733208603897,0.01,96093.0,96092.0,0.13109648]
[1733208604092,0.01,96093.0,96092.0,9.648e-05]
[1733208609192,0.008,96093.0,96092.0,9.648e-05]
[1733208609497,0.004,96093.0,96092.0,9.648e-05]
[1733208611891,0.00407671,96093.0,96092.0,9.648e-05]
[1733208614393,0.00807671,96093.0,96092.0,9.648e-05]
[1733208614799,0.01007671,96093.0,96092.0,9.648e-05]
[1733208620196,0.01007671,96093.0,96092.0,0.41291948]
[1733208620392,0.01007671,96093.0,96092.0,0.54791948]
[1733208622408,0.01007671,96093.0,96092.0,0.56711797]
[1733208640927,0.01007671,96093.0,96092.0,0.43211797]
[1733208641223,0.01007671,96093.0,96092.0,0.56711797]
[1733208647325,0.01007671,96093.0,96092.0,0.43211797]
[1733208647519,0.01007671,96093.0,96092.0,0.56615797]
[1733208651932,0.01007671,96093.0,96092.0,0.43211797]
[1733208652134,0.01007671,96093.0,96092.0,0.56615797]
[1733208653431,0.01007671,96093.0,96092.0,0.20535797]
[1733208663648,0.01007671,96093.0,96092.0,0.56615797]
[1733208675552,0.39,96116.0,96093.0,0.052021]
[1733208675851,0.39,96116.0,96092.0,0.51413497]
[1733208675852,0.0417,96114.0,96113.0,0.05201]
[1733208676050,0.0313,96114.0,96113.0,0.18605]
[1733208676650,0.03139596,96114.0,96113.0,0.18605]
[1733208677558,0.03339596,96114.0,96113.0,0.18605]
[1733208677750,0.03639596,96114.0,96113.0,0.18605]
[1733208677945,0.03639596,96114.0,96113.0,0.20487753]
[1733208678147,0.42639596,96114.0,96113.0,0.20487753]
[1733208681357,0.47840596,96114.0,96113.0,0.15286753]
[1733208681554,0.47840596,96114.0,96113.0,0.01882753]
[1733208681759,0.052011,96112.0,96111.0,0.13224]
[1733208681949,0.052011,96112.0,96108.0,0.052013]
[1733208681950,0.052011,96113.0,96109.0,0.13224]
[1733208682151,0.052012,96110.0,96109.0,0.13224]
[1733208682550,0.442012,96110.0,96108.0,0.052013]
[1733208684048,0.443012,96110.0,96108.0,0.052013]
[1733208690358,0.001,96110.0,96108.0,0.052013]
[1733208694365,0.001,96110.0,96109.0,0.13224]
[1733208696871,0.053012,96110.0,96109.0,0.13224]
[1733208697271,0.052012,96110.0,96109.0,0.13224]
[1733208697567,0.053012,96110.0,96109.0,0.13224]
[1733208701677,0.001,96110.0,96109.0,0.13224]
[1733208705375,0.001,96110.0,96108.0,0.052013]
[1733208705575,0.053012,96110.0,96109.0,0.13224]
[1733208707381,0.052012,96110.0,96109.0,0.13224]
[1733208707583,0.053012,96110.0,96109.0,0.13224]
[1733208715888,0.053012,96110.0,96109.0,0.184253]
[1733208716981,0.053012,96110.0,96109.0,0.052013]
[1733208717188,0.053012,96110.0,96109.0,0.182533]
[1733208723795,0.053012,96110.0,96109.0,0.13052]
[1733208723999,0.053012,96110.0,96105.0,0.0104]
[1733208724000,0.001,96110.0,96105.0,0.0104]
[1733208724291,0.052014,96107.0,96106.0,0.13052]
[1733208726099,0.058014,96107.0,96106.0,0.13052]
[1733208726293,0.067014,96107.0,96106.0,0.13152]
[1733208726590,0.427814,96107.0,96106.0,0.13152]
[1733208726990,0.817814,96107.0,96106.0,0.13152]
[1733208728089,0.817814,96107.0,96106.0,0.001]
[1733208735296,0.015,96107.0,96106.0,0.053014]
[1733208735887,0.015,96107.0,96106.0,0.113414]
[1733208739501,0.405,96107.0,96106.0,0.113414]
[1733208746696,0.405,96107.0,96106.0,0.185694]
[1733208747807,0.405,96107.0,96106.0,0.053014]
[1733208748002,0.405,96107.0,96106.0,0.185694]
[1733208759113,0.405,96107.0,96106.0,0.053014]
[1733208759319,0.457014,96107.0,96106.0,0.185734]
[1733208760810,0.457014,96107.0,96106.0,0.053014]
[1733208761120,0.457014,96107.0,96106.0,0.13372]
[1733208761919,0.457014,96107.0,96106.0,0.001]
[1733208771112,0.052026,96086.0,96061.0,0.519739]
[1733208771316,0.412826,96086.0,96073.0,0.15583606]
[1733208771716,0.802826,96086.0,96073.0,0.13696]
[1733208772313,0.82345302,96086.0,96070.0,0.04946873]
[1733208772521,0.82345302,96086.0,96075.0,0.13696]
[1733208772522,0.43345302,96086.0,96075.0,0.13696]
[1733208772719,0.052031,96076.0,96075.0,0.13696]
[1733208773027,0.412831,96076.0,96075.0,0.13696]
[1733208774123,0.412831,96076.0,96075.0,0.13996]
[1733208774821,0.412831,96076.0,96075.0,0.14196]
[1733208778432,0.412831,96076.0,96075.0,0.005]
[1733208780121,0.412831,96076.0,96075.0,0.14196]
[1733208780528,0.3608,96076.0,96075.0,0.14196]
[1733208782723,0.3608,96076.0,96075.0,0.005]
[1733208783032,0.3608,96076.0,96075.0,0.142]
[1733208784025,0.3608,96076.0,96075.0,0.005]
[1733208784227,0.3608,96076.0,96075.0,0.142]
[1733208787934,0.3608,96076.0,96075.0,0.005]
[1733208788130,0.3608,96076.0,96075.0,0.142]
[1733208789229,0.412831,96076.0,96075.0,0.142]
[1733208790631,0.412831,96076.0,96075.0,0.194032]
[1733208798338,0.412831,96076.0,96075.0,0.193392]
[1733208799134,0.052031,96076.0,96075.0,0.005]
[1733208799442,0.052031,96076.0,96064.0,0.0026]
[1733208799443,0.052038,96065.0,96064.0,0.0026]
[1733208799632,0.052038,96063.0,96062.0,0.13636]
[1733208800343,0.052038,96063.0,96062.0,0.15564174]
[1733208801228,0.052038,96063.0,96062.0,0.13636]
[1733208801433,0.053038,96063.0,96062.0,0.006]
[1733208803142,0.054038,96063.0,96062.0,0.006]
[1733208804834,0.054038,96063.0,96047.0,0.13636]
[1733208805039,0.052047,96048.0,96047.0,0.13636]
[1733208806040,0.053047,96048.0,96047.0,0.13936]
[1733208806247,0.053047,96048.0,96047.0,0.003]
[1733208807250,0.052048,96046.0,96045.0,0.13636]
[1733208808438,0.002,96048.0,96042.0,0.13636]
[1733208808746,0.052051,96041.0,96039.0,0.13636]
[1733208808950,0.052051,96041.0,96033.0,0.052554]
[1733208809247,0.052052,96039.0,96034.0,0.13636]
[1733208809638,0.0104,96040.0,96034.0,0.13636]
[1733208809639,0.052053,96037.0,96034.0,0.13636]
[1733208809950,0.052053,96037.0,96035.0,0.13636]
[1733208811047,0.00010535,96036.0,96035.0,0.13636]
[1733208811349,0.052053,96035.0,96034.0,0.13636]
[1733208811752,0.052053,96035.0,96034.0,0.14581121]
[1733208812646,0.052053,96035.0,96034.0,0.00945121]
[1733208812846,0.053053,96035.0,96034.0,0.14585121]
[1733208813250,0.054053,96035.0,96034.0,0.14585121]
[1733208813848,0.054053,96035.0,96034.0,0.00945121]
[1733208814045,0.054053,96035.0,96034.0,0.14585121]
[1733208816961,0.054053,96035.0,96034.0,0.00945121]
[1733208818755,0.084853,96035.0,96034.0,0.00945121]
[1733208819055,0.446653,96035.0,96034.0,0.00945121]
[1733208819555,0.445653,96035.0,96034.0,0.00945121]
[1733208819750,0.446653,96035.0,96034.0,0.00945121]
[1733208824352,0.414853,96035.0,96034.0,0.00945121]
[1733208824547,0.054053,96035.0,96034.0,0.00945121]
[1733208839879,0.414853,96035.0,96034.0,0.00945121]
[1733208842469,0.052059,96023.0,96022.0,0.00010302]
[1733208843673,0.054059,96023.0,96022.0,0.00010302]
[1733208845672,0.054059,96023.0,96022.0,0.01029445]
[1733208850281,0.002,96023.0,96022.0,0.01029445]
[1733208850777,0.002,96023.0,96022.0,0.14701445]
[1733208855584,0.002,96023.0,96022.0,0.01029445]
[1733208875308,0.002,96023.0,96022.0,0.01172533]
[1733208885520,0.002,96023.0,96022.0,0.14936533]
[1733208887807,0.001,96023.0,96022.0,0.14936533]
[1733208888009,0.002,96023.0,96022.0,0.01172533]
[1733208890116,0.002,96023.0,96022.0,0.06378533]
[1733208898428,0.052059,96024.0,96022.0,0.06378533]
[1733208899425,0.052059,96024.0,96023.0,0.01162231]
[1733208907521,0.052059,96024.0,96023.0,0.01305319]
[1733208917130,0.082659,96024.0,96023.0,0.01305319]
[1733208918734,0.082659,96024.0,96022.0,0.00010302]
[1733208918941,0.052066,96008.0,96006.0,0.13784]
[1733208919240,0.052066,96008.0,96006.0,0.15457018]
[1733208920129,0.053066,96008.0,96006.0,0.15457018]
[1733208920841,0.054066,96008.0,96006.0,0.15457018]
[1733208921140,0.054066,96008.0,96000.0,0.25009873]
[1733208921141,0.052068,96004.0,96001.0,0.13524]
[1733208921835,0.052068,96004.0,96003.0,0.02122628]
[1733208922241,0.052068,96004.0,96003.0,0.00156231]
[1733208922738,0.053068,96004.0,96003.0,0.00156231]
[1733208923142,0.054068,96004.0,96003.0,0.00156231]
[1733208923853,0.054068,96004.0,96003.0,0.00152231]
[1733208923854,0.002,96004.0,96003.0,0.00152231]
[1733208924436,0.002,96004.0,96003.0,0.13676231]
[1733208927045,0.002,96004.0,96003.0,0.00152231]
[1733208927239,0.05207,96001.0,96000.0,0.20063]
[1733208927446,0.41287,96001.0,96000.0,0.20063]
[1733208928832,0.41387,96001.0,96000.0,0.20063]
[1733208929544,0.052078,95986.0,95985.0,0.0026]
[1733208929747,0.052078,95986.0,95980.0,0.0001061]
[1733208929748,0.052081,95981.0,95980.0,0.0001061]
[1733208937841,0.44219535,95981.0,95980.0,0.0001061]
[1733208938039,0.74219535,95981.0,95980.0,0.0001061]
[1733208938247,0.74219535,95981.0,95964.0,0.00334]
[1733208938248,0.84638317,95981.0,95964.0,0.00334]
[1733208938444,0.84638317,95981.0,95964.0,0.00074]
[1733208938445,0.412889,95965.0,95964.0,0.00074]
[1733208939047,0.802889,95965.0,95964.0,0.00074]
[1733208939652,0.803889,95965.0,95964.0,0.00074]
[1733208940045,0.803889,95965.0,95948.0,0.0026]
[1733208940046,1.0518,95965.0,95948.0,0.0026]
[1733208940356,0.3608,95951.0,95941.0,0.0026]
[1733208940543,0.418097,95951.0,95945.0,0.0521]
[1733208940739,0.057297,95951.0,95945.0,0.0521]
[1733208941153,0.057297,95951.0,95942.0,0.412902]
[1733208941154,0.0052,95951.0,95942.0,0.412902]
[1733208941351,0.0052,95951.0,95949.0,0.052098]
[1733208941550,0.0052,95951.0,95950.0,0.0958]
[1733208941551,0.0062,95951.0,95950.0,0.0958]
[1733208941753,0.0062,95951.0,95950.0,0.4566]
[1733208942341,0.0072,95951.0,95950.0,0.4566]
[1733208942854,0.0062,95951.0,95950.0,0.4566]
[1733208943050,0.0072,95951.0,95950.0,0.4566]
[1733208943546,0.0072,95951.0,95950.0,0.0958]
[1733208943749,0.0062,95951.0,95950.0,0.0958]
[1733208943943,0.0072,95951.0,95950.0,0.0958]
[1733208952151,0.3972,95951.0,95950.0,0.0958]
[1733208955059,0.3972,95951.0,95950.0,0.0958]
[1733208958867,0.3608,95959.0,95958.0,0.052093]
[1733208959252,0.39,95959.0,95958.0,0.052093]
[1733208959578,0.0001259,95964.0,95961.0,0.052091]
[1733208959579,0.0026,95962.0,95961.0,0.052091]
[1733208959763,0.0001259,95964.0,95963.0,0.05209]
[1733208960061,0.0104,95977.0,95975.0,0.052084]
[1733208960266,0.37994652,95978.0,95976.0,0.033]
[1733208960466,0.39,95977.0,95976.0,0.033]
[1733208960863,0.39012215,95977.0,95976.0,0.033]
[1733208961766,0.39012215,95977.0,95976.0,0.03443188]
[1733208961964,0.39012215,95977.0,95976.0,0.03543188]
[1733208964563,0.39012215,95977.0,95976.0,0.03443188]
[1733208964867,0.39112215,95977.0,95976.0,0.03543188]
[1733208965063,0.39112215,95977.0,95976.0,0.00543188]
[1733208965266,0.39112215,95977.0,95976.0,0.00243188]
[1733208965461,0.39112215,95977.0,95976.0,0.00143188]
[1733208965860,0.39012215,95977.0,95976.0,0.00143188]
[1733208966169,0.39112215,95977.0,95976.0,0.00143188]
[1733208967661,0.39212215,95977.0,95976.0,0.00143188]
[1733208970363,0.53108215,95977.0,95976.0,0.00143188]
[1733208970565,0.63527432,95977.0,95976.0,0.00143188]
[1733208975266,0.49631432,95977.0,95976.0,0.00143188]
[1733208975467,0.53108215,95977.0,95976.0,0.00143188]
[1733208976466,0.39212215,95977.0,95976.0,0.00143188]
[1733208976671,0.53108215,95977.0,95976.0,0.00143188]
[1733208977168,0.63527432,95977.0,95976.0,0.00143188]
[1733208985678,0.05209,95963.0,95962.0,0.0156]
[1733208985976,0.052096,95952.0,95948.0,0.0156]
[1733208986174,0.052096,95952.0,95946.0,0.0326]
[1733208986175,0.36088629,95952.0,95946.0,0.0326]
[1733208986573,0.36,95951.0,95946.0,0.0326]
[1733208986770,0.052098,95948.0,95946.0,0.0326]
[1733208987691,0.052098,95948.0,95946.0,0.0336]
[1733208988081,0.053098,95948.0,95946.0,0.0336]
[1733208989178,0.054098,95948.0,95946.0,0.0336]
[1733208990883,0.07308631,95948.0,95946.0,0.0336]
[1733208992183,0.36,95947.0,95946.0,0.001]
[1733208992488,0.4642242,95947.0,95946.0,0.001]
[1733208992671,0.052101,95942.0,95941.0,0.0309]
[1733208992876,0.412901,95942.0,95941.0,0.0309]
[1733208993284,0.51712575,95942.0,95941.0,0.0309]
[1733208993483,0.87712575,95942.0,95941.0,0.0309]
[1733208994278,0.95108575,95942.0,95941.0,0.0309]
[1733208994477,0.052104,95937.0,95936.0,0.0308]
[1733208996278,0.054104,95937.0,95936.0,0.0308]
[1733208996977,0.07327921,95937.0,95936.0,0.0308]
[1733208998889,0.21239921,95937.0,95936.0,0.0308]
[1733208999983,0.07327921,95937.0,95936.0,0.0308]
[1733209001294,0.052111,95933.0,95932.0,0.0316]
[1733209001593,0.141511,95933.0,95932.0,0.0316]
[1733209002492,0.142511,95933.0,95932.0,0.0316]
[1733209002795,0.143511,95933.0,95932.0,0.0316]
[1733209010296,0.24786255,95933.0,95926.0,0.0026]
[1733209010604,0.052116,95925.0,95921.0,0.0026]
[1733209010898,0.189396,95925.0,95920.0,0.00088]
[1733209011087,0.549396,95925.0,95920.0,0.00088]
[1733209011293,0.65364465,95925.0,95920.0,0.00088]
[1733209011901,0.51636465,95925.0,95924.0,5.4e-07]
[1733209012094,0.65364465,95925.0,95924.0,5.4e-07]
[1733209012397,0.052118,95921.0,95920.0,5.4e-07]
[1733209012700,0.412918,95921.0,95920.0,5.4e-07]
[1733209013202,0.517171,95921.0,95920.0,5.4e-07]